Cogmind - Beta 16 @@@ ROGUE MODE // 2025.11.04 @ 20:27:06 Player: ChromeKnight Result: Destroyed by Y-45 Defender with Heavy Assault Rifle Performance ------------- Evolutions (2) 1000 Regions Visited (4) 800 Robots Destroyed (31) 155 Value Destroyed (1095) 1095 Prototype IDs (14) 280 Alien Tech Used (0) 0 Bonus (0) 0 TOTAL SCORE: 3330 Bonus ------- None Cogmind --------- Core Integrity 0/550 Matter 248/300 Energy 340/340 System Corruption 0% Temperature Cool (82) Movement Treading (163) Location -8/Storage Parts ------- > --- POWER (2) -------- Improved Deuterium Engine Light Angular Momentum Engine > --- PROPULSION (3) --- Light Treads Light Treads Armored Treads > --- UTILITY (4) ------ Small Storage Unit Advanced Targeting Computer Weapon Cycler Improved Light Armor Plating > --- WEAPON (2) ------- Heavy Assault Cannon > --- INVENTORY (8) ---- Faulty Improved VTOL Module Improved VTOL Module Structural Scanner Improved Utility Shielding Improved Light Armor Plating Graphene Brace Hacking Suite System Shield Peak State ------------ > --- POWER ------------ Improved Ion Engine Light Nuclear Core > --- PROPULSION ------- Improved Aluminum Leg Arachnoskeleton > --- UTILITY ---------- Improved Heat Sink Small Storage Unit Advanced Targeting Computer Hardened Medium Armor Plating > --- WEAPON ----------- Heavy Laser Enhanced Autogun > --- INVENTORY -------- Structural Scanner Improved Utility Shielding Hacking Suite Medium Laser Medium Laser Medium Laser Flamer [Rating: 47] Favorites ----------- Power Ion Engine Engine Ion Engine Power Core Light Nuclear Core Propulsion Light Treads Treads Light Treads Leg Arachnoskeleton Utility Small Storage Unit Device Weapon Cycler Storage Small Storage Unit Processor Advanced Targeting Computer Protection Scrap Shield Weapon Medium Laser Energy Gun Medium Laser Energy Cannon Cooled Particle Cannon Ballistic Gun Enhanced Autogun Ballistic Cannon Heavy Assault Cannon Special Weapon Flamer Build | -11 -10 -10 -8 -8 ------- Run | Yrd Mat Sub Mat Sto Slots Evolved 4 | . . . 4 . Power 1 | . . . 1 . Propulsion 1 | . . . 1 . Utility 2 | . . . 2 . Weapon . | . . . . . Parts Attached 36 | 6 . 4 26 . Power 6 | 1 . . 5 . Engine 5 | 1 . . 4 . Core 1 | . . . 1 . Reactor . | . . . . . Propulsion 8 | 2 . . 6 . Treads 5 | 2 . . 3 . Leg 3 | . . . 3 . Wheel . | . . . . . Hover . | . . . . . Flight . | . . . . . Utility 9 | 1 . 1 7 . Device 3 | . . . 3 . Storage 2 | 1 . . 1 . Processor 1 | . . . 1 . Hackware . | . . . . . Protection 3 | . . 1 2 . Artifact . | . . . . . Weapon 13 | 2 . 3 8 . Energy Gun 7 | 2 . 1 4 . Energy Cannon 2 | . . . 2 . Ballistic Gun 2 | . . 1 1 . Ballistic Cannon 1 | . . . 1 . Launcher . | . . . . . Special Weapon 1 | . . 1 . . Impact Weapon . | . . . . . Slashing Weapon . | . . . . . Piercing Weapon . | . . . . . Special Melee Weapon . | . . . . . Unidentified Prototypes 2 | . . . 2 . Parts Lost 7 | . . . 7 . Power 2 | . . . 2 . Propulsion 2 | . . . 2 . Utility 1 | . . . 1 . Weapon 2 | . . . 2 . Highest Loss Streak 4 | . . . 4 . To Critical Strikes . | . . . . . Average Backups 4 | . 2 3 6 8 Power . | . . . . . Propulsion . | . . . . 2 Utility 3 | . . 1 5 6 Weapon . | . 1 . . . Tool/Special . | . . . . . Unused Backups 12 | . . 1 4 7 Power . | . . . . . Propulsion 2 | . . . . 2 Utility 9 | . . . 4 5 Weapon 1 | . . 1 . . Tool/Special . | . . . . . Average Slot Usage (%) 82 | . 85 85 76 90 Engine 14 | . 14 14 13 18 Treads 23 | . 28 28 15 27 Leg 1 | . . . 3 . Device 5 | . . . 13 9 Storage 4 | . 14 . 8 9 Processor 3 | . . . 8 9 Protection 8 | . . 13 2 9 Energy Gun 13 | . 28 21 2 . Ballistic Cannon 3 | . . . 6 9 Special Weapon 2 | . . 6 . . Peak Build Rating 47 | 6 6 12 47 33 Average Rating 19 | 4 6 11 31 33 On Entrance 11 | . 6 6 12 33 Avg Prop Armor Cover (%) 6 | . . . 6 . Naked Turns . | . . . . . Heaviest Build 42 | 14 14 29 42 40 Greatest Support 63 | 40 40 40 63 60 Greatest Overweight (x) 11 | 3 . . 11 . Average Overweight (x) . | . . . . . Largest Inventory Capacity 8 | 8 8 8 8 8 Average Capacity 6 | 7 8 5 7 8 Most Carried 8 | 1 3 5 8 8 Average Carried 5 | . 2 4 7 8 Final Capacity 8 | 8 8 5 8 8 Final Carried 8 | 1 3 5 8 8 Class Distribution -------------------- 74% | Mutant 25% | Scavenger-Mutant Dominant Class ---------------- Mutant | -10/Materials Mutant | -10/Subcaves Mutant | -8/Materials Scavenger-Mutant | -8/Storage Resources | -11 -10 -10 -8 -8 ----------- Run | Yrd Mat Sub Mat Sto Matter Collected 1202 | 260 . 90 848 4 Remotely . | . . . . . Salvage Created 1317 | . 61 239 975 42 Parts 58 | . 5 12 40 1 Haulers Intercepted 4 | . . . 4 . Recyclers Shooed . | . . . . . Parts Field Recycled . | . . . . . Retrieved Matter . | . . . . . Parts Self-Destructed . | . . . . . Prevented . | . . . . . Parts Restored . | . . . . . Kills | -11 -10 -10 -8 -8 ------- Run | Yrd Mat Sub Mat Sto Combat Hostiles Destroyed 21 | . 1 4 15 1 Guns 10 | . 1 3 6 . Cannons 10 | . . . 9 1 AOE 1 | . . 1 . . Classes Destroyed 12 | . 2 2 8 . Worker 1 | . . . 1 . Builder 1 | . . . 1 . Hauler 4 | . . . 4 . Recycler 1 | . . . 1 . Operator 1 | . 1 . . . Watcher 2 | . . . 1 1 Grunt 11 | . 1 . 10 . Sentry 4 | . . . 3 1 Hunter 1 | . . . 1 . Heavy 1 | . . . 1 . Cobbler 1 | . . 1 . . Subdweller 4 | . . 4 . . Best Kill Streak 5 | . 1 2 5 1 Combat Bots Only 5 | . 1 2 5 1 Max Kills in Single Turn 1 | . 1 1 1 1 Gunslinging . | . . . . . Exploded 1 | . . 1 . . Melee . | . . . . . Uniques/NPCs Destroyed . | . . . . . Combat | -11 -10 -10 -8 -8 -------- Run | Yrd Mat Sub Mat Sto Hostile Shots Fired 140 | . 3 18 111 8 Missed 36 | . . 5 30 1 Hits 104 | . 3 13 81 7 Projectile 104 | . 3 13 81 7 Critical Strikes 8 | . . . 8 . Damage Taken 2463 | . 32 318 2009 104 Core 590 | . 20 19 510 41 Absorbed by Shields . | . . . . . Core Remaining (%) 92 | 100 . 84 . . Volleys Fired 131 | . 3 27 94 7 Largest 2 | . 2 2 2 1 Hottest 100 | . 90 100 100 50 Shots Fired 201 | . 6 51 137 7 Gun 136 | . 6 49 81 . Cannon 63 | . . . 56 7 Launcher . | . . . . . Special 2 | . . 2 . . Kinetic 75 | . . 5 63 7 Thermal 117 | . 3 40 74 . Explosive . | . . . . . Electromagnetic 9 | . 3 6 . . Robot Hit Streak 24 | . 2 24 12 17 Robot Miss Streak 5 | . 1 1 5 . Penetration Max . | . . . . . Secondary Targets 2 | . . . 2 . Max Gunslinging Chain 1 | . . . 1 . Shots Hit Robots 137 | . 3 31 98 5 Core Hits 49 | . 2 12 33 2 Critical Kills . | . . . . . Critical Parts Destroyed . | . . . . . Critical Strikes 15 | . . 3 9 3 Burn 5 | . . 3 2 . Blast 10 | . . . 7 3 Melee Attacks . | . . . . . Impact . | . . . . . Slashing . | . . . . . Piercing . | . . . . . Sneak Attacks . | . . . . . Combat Hostiles . | . . . . . Follow-up Attacks . | . . . . . Damage Inflicted 3599 | . 43 479 2692 385 Guns 1278 | . 43 383 852 . Cannons 2215 | . . . 1830 385 Explosions 96 | . . 96 . . Melee . | . . . . . Ramming 10 | . . . 10 . Kinetic 2223 | . . . 1838 385 Thermal 1292 | . 12 436 844 . Explosive . | . . . . . Electromagnetic 74 | . 31 43 . . Impact . | . . . . . Slashing . | . . . . . Piercing . | . . . . . Highest Corruption . | . . . . . Average Corruption . | . . . . . Corruption Purged . | . . . . . Corruption Blocked . | . . . . . Overload Shots . | . . . . . Overflow Damage 140 | . . . 98 42 Projectiles 140 | . . . 98 42 Explosions . | . . . . . Melee . | . . . . . Knockbacks 7 | . . . 5 2 Impact . | . . . . . Kinetic 7 | . . . 5 2 Secondary . | . . . . . Self-Inflicted Damage . | . . . . . Shots . | . . . . . Rammed 1 | . . . 1 . Targets Rammed 1 | . . . 1 . Kicked . | . . . . . Crushed . | . . . . . Highest Temperature 566 | . 72 . 566 78 Average Temperature 170 | . 34 . 199 34 Received Heat Transfer 531 | . 18 54 423 36 Effects 22 | . . . 22 . Shutdowns 6 | . . . 6 . Energy Bleed 2 | . . . 2 . Matter Decay 5 | . . . 5 . Damage (major) 6 | . . . 6 . Damage (core) 3 | . . . 3 . Siege Activations . | . . . . . Martial Activations . | . . . . . Shielding Activations . | . . . . . Robots Disrupted . | . . . . . Combat Hostiles . | . . . . . Robots Corrupted . | . . . . . Combat Hostiles . | . . . . . Parts Fried . | . . . . . Impact Corruptions . | . . . . . Robots Melted . | . . . . . Combat Hostiles . | . . . . . Parts Melted 5 | . . 3 2 . Heat Transferred 3578 | . 37 1321 2220 . Parts Sabotaged . | . . . . . Parts Stolen . | . . . . . Parts Stripped . | . . . . . Power Chain Reactions 1 | . . 1 . . Alert | -11 -10 -10 -8 -8 ------- Run | Yrd Mat Sub Mat Sto Maximum Alert Level . | . . . . . Low Security (%) 100 | 100 100 . 100 100 Level 1 . | . . . . . Level 2 . | . . . . . Level 3 . | . . . . . Level 4 . | . . . . . Level 5 . | . . . . . High Security . | . . . . . Max Security . | . . . . . Peak Influence 146 | . 45 . 146 46 Initial 46 | . . . . 46 Average 47 | . 7 . 62 11 Influence Increases 631 | . 50 . 542 39 Destroy 0b10 Robot/C 340 | . 20 . 300 20 Destroy 0b10 Robot/NC 50 | . 5 . 40 5 Destroy Leader 112 | . 10 . 90 12 Disable Machine 60 | . . . 60 . Destroy Structure 24 | . . . 22 2 Lose Combat Pursuer 45 | . 15 . 30 . Influence Decreases 610 | . 50 . 432 128 Entered New Map 64 | . . . . 64 Time Decay 506 | . 50 . 392 64 Lost Part 40 | . . . 40 . Squads Dispatched 2 | . 1 . 1 . Investigation . | . . . . . Extermination . | . . . . . Reinforcement 2 | . 1 . 1 . Assault . | . . . . . Garrison . | . . . . . Intercept . | . . . . . Searches Triggered . | . . . . . Construction Impeded . | . . . . . Haulers Reinforced . | . . . . . Active Scanning Responses . | . . . . . Cargo Convoy Interrupts . | . . . . . Stealth | -11 -10 -10 -8 -8 --------- Run | Yrd Mat Sub Mat Sto Distress Signals 3 | . 1 . 2 . Communications Jammed . | . . . . . Distress Signals . | . . . . . Times Spotted 38 | . 4 4 27 3 Peak Tracking Total 7 | . 2 2 7 2 Tactical Retreats 3 | . 1 . 2 . Traps | -11 -10 -10 -8 -8 ------- Run | Yrd Mat Sub Mat Sto Traps Triggered 1 | . . 1 . . Indirectly . | . . . . . Trap Hack Attempts . | . . . . . Triggered . | . . . . . Disarmed . | . . . . . Reprogrammed . | . . . . . Reused . | . . . . . Traps Extracted . | . . . . . Installed . | . . . . . Triggered . | . . . . . Most Traps Carried 1 | . . 1 . . Machines | -11 -10 -10 -8 -8 ---------- Run | Yrd Mat Sub Mat Sto Machines Disabled 5 | . . 1 4 . Max in Single Turn 1 | . . 1 1 . Machines Repaired . | . . . . . Machines Dismantled . | . . . . . Machines Sabotaged . | . . . . . Overloaded Fab Kills . | . . . . . Hacking | -11 -10 -10 -8 -8 --------- Run | Yrd Mat Sub Mat Sto Machines Accessed 6 | . . 3 2 1 Terminals 3 | . . . 2 1 Fabricators . | . . . . . Repair Stations . | . . . . . Recycling Units . | . . . . . Scanalyzers . | . . . . . Garrison Access . | . . . . . Total Hacks 8 | . . 4 3 1 Successful 6 | . . 4 1 1 Failed 2 | . . . 2 . Catastrophic . | . . . . . Database Lockouts . | . . . . . Manual 3 | . . . 3 . Terminals 4 | . . . 3 1 Fabricators . | . . . . . Repair Stations . | . . . . . Recycling Units . | . . . . . Scanalyzers . | . . . . . Garrison Access . | . . . . . Terminal Hacks 6 | . . 4 1 1 Record 1 | . . 1 . . Open Door 2 | . . 1 . 1 Branch Access Points 1 | . . . 1 . Proto ID Catalog 1 | . . 1 . . Release Object 1 | . . 1 . . Fabricator Hacks . | . . . . . Repair Station Hacks . | . . . . . Recycling Unit Hacks . | . . . . . Scanalyzer . | . . . . . Garrison Access Hacks . | . . . . . Unauthorized Hacks . | . . . . . Terminals . | . . . . . Fabricators . | . . . . . Repair Stations . | . . . . . Recycling Units . | . . . . . Scanalyzers . | . . . . . Garrison Access . | . . . . . Data Cores Recovered . | . . . . . Used . | . . . . . Hacking Detections 2 | . . . 1 1 Full Trace Events . | . . . . . Feedback Events . | . . . . . Feedback Blocked . | . . . . . Robot Schematics Acquired . | . . . . . Robots Built . | . . . . . Authchips . | . . . . . Time . | . . . . . Total Robot Build Rating . | . . . . . Part Schematics Acquired . | . . . . . Parts Built . | . . . . . Authchips . | . . . . . Time . | . . . . . Total Part Build Rating . | . . . . . Part Studies Acquired . | . . . . . Parts Repaired . | . . . . . Time . | . . . . . Parts Recycled . | . . . . . Recycled Matter . | . . . . . Retrieved Matter . | . . . . . Retrieved Components . | . . . . . Parts Scanalyzed . | . . . . . Part Schematics Acquired . | . . . . . Parts Damaged . | . . . . . Bothacking | -11 -10 -10 -8 -8 ------------ Run | Yrd Mat Sub Mat Sto Used RIF Installer . | . . . . . Robots Hacked . | . . . . . Non-combat . | . . . . . Combat . | . . . . . Robot Hacks Applied . | . . . . . Relay Couplers Released . | . . . . . Fabnet Peak Effective % . | . . . . . Robots Rewired . | . . . . . Allies Hacked . | . . . . . Hacks Repelled . | . . . . . Allies | -11 -10 -10 -8 -8 -------- Run | Yrd Mat Sub Mat Sto Total Allies . | . . . . . Largest Group . | . . . . . Highest-Rated Group . | . . . . . Highest-Rated Ally . | . . . . . Total Orders . | . . . . . Ally Attacks . | . . . . . Total Damage . | . . . . . Kills . | . . . . . Allies Corrupted . | . . . . . Allies Melted . | . . . . . Intel | -11 -10 -10 -8 -8 ------- Run | Yrd Mat Sub Mat Sto Active Infowar (turns) . | . . . . . Robot Analysis Total . | . . . . . Derelict Logs Recovered . | . . . . . Drone Launches . | . . . . . Drone Recoveries . | . . . . . Exploration | -11 -10 -10 -8 -8 ------------- Run | Yrd Mat Sub Mat Sto Turns Passed 4239 | 76 266 1984 1632 281 Spaces Moved 2009 | 44 54 1091 745 75 Core 26 | 11 . . 15 . Treads 1825 | 33 54 1091 572 75 Legs 158 | . . . 158 . Wheels . | . . . . . Hover . | . . . . . Flight . | . . . . . Fastest Speed 50 | 50 160 160 90 163 Average Speed 162 | 139 160 160 168 163 Slowest Speed 600 | 200 160 160 600 163 Overloaded Moves . | . . . . . Propulsion Burnouts . | . . . . . Robots Hopped . | . . . . . Potential Cave-ins . | . . . . . Cave-ins Triggered . | . . . . . Exploration Rate (%) 22 | 4 14 34 42 18 Regions Visited 4 Branch Regions 2 Pre-discovered Areas . | . . . . . Known Exits Taken 1 | . . . 1 . Unknown Exits Taken 3 | 1 1 1 . . Scrap Searched . | . . . . . Spaces Dug . | . . . . . Terrain Destroyed 25 | . . 6 18 1 Melee . | . . . . . Projectile 19 | . . . 18 1 AOE 6 | . . 6 . . Terrain Rammed . | . . . . . Walls Destroyed . | . . . . . Machines Disabled . | . . . . . Actions | -11 -10 -10 -8 -8 --------- Run | Yrd Mat Sub Mat Sto Total 2764 | 56 228 1275 979 226 Wait 533 | 6 170 135 78 144 Move 2005 | 43 53 1090 744 75 Hop . | . . . . . Pick Up 20 | 1 2 3 14 . Fast Attach 27 | 6 . 2 19 . Attach 8 | . . 3 5 . Detach 3 | . . 2 1 . Swap 8 | . . 3 5 . Drop 23 | . . 5 18 . Fire 131 | . 3 27 94 7 Melee . | . . . . . Ram . | . . . . . Kick . | . . . . . Crush 1 | . . . 1 . Escape Stasis . | . . . . . Rewire . | . . . . . Trap . | . . . . . Miscellaneous 5 | . . 5 . . Route ------- -11/Scrapyard -10/Materials (discovered 2 exits: [*Min] / *Sub) -10/Subcaves -8/Materials (discovered 3 exits: [*Fac] / *Sto x2) -8/Storage History --------- Turn | Location | Event 16 | -11/Scrapyard | Discovered new exit (range 15) 77 | -11/Scrapyard | Entered Materials 105 | -10/Materials | Discovered new exit (range 15) 306 | -10/Materials | Build established: Mutant 312 | -10/Materials | Discovered new exit (range 10) 343 | -10/Materials | Entered Subcaves 502 | -10/Subcaves | Shifting Twisted Machinery released Sub. Machine Gun 518 | -10/Subcaves | Discovered new exit (range 5) 520 | -10/Subcaves | Shifting Twisted Machinery released Flamer 659 | -10/Subcaves | Visited 4L-MR0's lab 677 | -10/Subcaves | Found Arachnoskeleton 973 | -10/Subcaves | Released subatomizers from SUBCON Basin 2327 | -10/Subcaves | Entered Materials 2327 | -8/Materials | Evolved 4 slots: Power x1, Propulsion x1, Utility x2 2327 | -8/Materials | Discovered new exit (range 15) 2353 | -8/Materials | Attached Arachnoskeleton, gained temporary slots: Propulsion x3 2479 | -8/Materials | Core integrity fell below 50% 2628 | -8/Materials | Discovered new exit (range 4) 2760 | -8/Materials | Lost 4 parts (1p1n2w) 2773 | -8/Materials | Core integrity fell below 20% 3454 | -8/Materials | Build established: Scavenger-Mutant 3490 | -8/Materials | Discovered new exit (range 15) 3552 | -8/Materials | Identified exit to Storage 3959 | -8/Materials | Entered Storage 4240 | -8/Storage | Destroyed by Y-45 Defender with Heavy Assault Rifle Last Messages --------------- 04136_ T-07 Excavator is excavating. 04140_ U-05 Engineer builds a Wall. 04140_ T-07 Excavator is excavating. 04142_ U-05 Engineer lays Concrete. 04144_ U-05 Engineer builds a Wall. 04144_ T-07 Excavator is excavating. 04145_ U-05 Engineer lays Concrete. 04146_ U-05 Engineer builds a Wall. 04151_ T-07 Excavator is excavating. 04156_ U-05 Engineer lays Concrete. 04156_ T-07 Excavator is excavating. 04159_ U-05 Engineer lays Concrete. 04232_ Y-45 Defender Lgt. Armor Plating blasted off. 04236_ Slug penetrates Y-45 Defender. 04236_ Y-45 Defender suffers critical hit (Blast). 04236_ Destroyed Heat Sink. 04236_ Y-45 Defender destroyed. 04239_ U-05 Engineer builds a Wall. Map ----- +----------------------------------------------------+ | ??# #???## ### ###### | | ??# #???#T # #????? | | ??# #???## + #????? | | ??# """" #????##### #????? | | ??# ] """" ########## #????? | | ??# """" + #????? | | ??# """" #### ###??? | | ??# #??# #??? | | ??###########??# #??? | | ???????????????#+##+## #??? | | ???????????????# ## ##??? | | ???????????????# ""## #???? | | ???????????????# T"## #???? | | ???????????????+% ""## #???? | | ???????????????# % ## #???? | | ???????????????##+#### #???? | | ???????????????+ #???? | | ???????????????# ##### #???? | | ????????????????? ????# #???? | | ????????????????? ???##+##### | | ????????????????? ???#! # | | ?????????????????????# # | | ?????????????????????# = # | | ?????????????????????#! ! # | | ?????????????????????#= # | | ?????????????????????# !@ # | | ?????????????????????###Y#### | | ??????????????????????# % ??? | | ?????????????????????u%r ??? | | ????????????????????### #?? | | ????????????????????#### ##?? | | ???????????????????????# #??? | | ???????????????????????# #??? | | ??????????????????????? ??? | | ??????????????????????? ??? | | ??????????????????????? ??? | | ???????????????????????# #??? | | ???????????????????????? ???? | | ???????????????????????? ???? | | ???????????????????????? ???? | | ???????????????????????? ???? | | ????????????????????????????? | | ????????????????????????????? | | ????????????????????????????? | | ????????????????????????????? | | ????????????????????????????? | | ????????????????????????????? | | ????????????????????????????? | | ????????????????????????????? | | ????????????????????????????? | +----------------------------------------------------+ Best States ------------- Heat Dissipation 53 Energy Generation 29 Energy Capacity 480 Matter Stores 300 Matter Capacity 300 Sight Range 16 Terrain Scan Density 10 Armor Coverage 800 Weapon Cycling 15 Evasion (%) 57 Targeting Accuracy 8 Recoil Reduction 3 Item Schematics ----------------- None Robot Schematics ------------------ None Fabricated ------------ Nothing Repaired ---------- Nothing Studied --------- None Alien Tech Used ----------------- None Achievements -------------- None Challenges ------------ None Game ------ Seed BladeTransmissionChainsaw Manual? 0 Play Time 00:17:45 Cumulative 505.2 hours Start 2025.11.04 @ 20:06:52 End 2025.11.04 @ 20:27:06 Sessions 1 Manual Loads 0 Difficulty Rogue Special Mode None Game No. 840 Rogue 685 Adventurer 148 Explorer 7 Win Type - Total 24 Types 19/1/3/1/0/0/0/0/0/0 Lore% 74 Gallery% 78 Achievement% 61 Wizard Run 0 Options --------- Layout 1 ASCII 0 Keyboard 0 Movement Numpad Keybinds 0 Fullscreen 2 Font 24/Smallcaps Map View 50x40 Zoom Use 0% Tactical HUD 1 Map Filters NONE Filters NONE Steam 1 RUN: a880a074-b05b-4d6a-a3dd-eb56624c8c8f